bitfinex-derivatives/quotes_ETHF0:USTF0_20260306
["timestamp","ask_amount","ask_price","bid_price","bid_amount"]
[1772803954335,6.40531529,2045.8,2044.6,7.009706]
[1772803954336,0.00431529,2045.8,2044.6,7.009706]
[1772803954626,0.00431529,2045.8,2045.1,6.765166]
[1772803954832,4.0728655,2046.5,2045.3,6.765166]
[1772803955026,4.0728655,2046.6,2045.3,6.765166]
[1772803955227,6.16017447,2046.6,2045.3,6.765166]
[1772803955437,6.40450447,2046.5,2045.3,6.765166]
[1772803955726,6.40797593,2046.5,2045.3,6.765166]
[1772803955930,0.24780146,2046.5,2045.3,6.765166]
[1772803956631,0.00347146,2046.5,2045.5,6.765166]
[1772803956827,0.00347146,2046.5,2045.5,6.77063201]
[1772803957130,0.00347146,2046.5,2045.5,6.79533201]
[1772803957437,0.24427,2047.1,2045.7,6.790226]
[1772803957628,0.24427,2047.1,2045.9,6.789686]
[1772803957830,0.24427,2047.1,2045.9,6.789816]
[1772803958033,0.24427,2047.1,2045.9,6.765166]
[1772803958334,0.24427,2047.1,2046.1,6.765166]
[1772803958335,0.00346155,2047.1,2046.1,6.765166]
[1772803958729,0.00346155,2047.1,2046.1,6.789876]
[1772803959035,0.00346155,2047.1,2046.1,6.765166]
[1772803959228,0.00346155,2047.1,2046.1,6.789756]
[1772803959430,0.00346155,2047.1,2046.1,6.765166]
[1772803959736,0.00346155,2047.1,2046.1,6.789806]
[1772803960030,0.00346155,2047.1,2046.1,6.765166]
[1772803961035,0.24427,2047.0,2046.1,6.765166]
[1772803961931,0.00346155,2047.1,2046.1,6.765166]
[1772803962833,7.07744733,2047.7,2046.3,6.765166]
[1772803963036,0.24416,2048.0,2046.7,6.765166]
[1772803963234,13.40078432,2048.6,2047.1,6.765166]
[1772803963235,0.24409,2048.5,2047.1,6.765166]
[1772803963533,0.24409,2048.5,2047.3,6.765166]
[1772803963734,6.16017447,2048.9,2047.3,6.765166]
[1772803963929,0.00452399,2048.9,2047.5,6.765166]
[1772803964337,0.00452399,2048.9,2047.7,6.765166]
[1772803964538,0.00452399,2048.9,2047.9,6.765166]
[1772803964940,6.16469846,2048.9,2047.9,6.765166]
[1772803965436,0.00452399,2048.9,2047.9,6.765166]
[1772803965941,0.00452399,2048.9,2047.8,9.177]
[1772803965942,6.16017447,2048.7,2047.8,9.177]
[1772803966237,6.16017447,2048.7,2047.8,15.942166]
[1772803966436,0.00452399,2048.9,2047.9,6.765166]
[1772803966736,0.24398,2049.5,2048.0,6.765166]
[1772803967138,6.16017447,2049.9,2048.3,6.765166]
[1772803967433,6.40413447,2049.6,2048.5,6.765166]
[1772803967639,6.41026477,2049.6,2048.7,6.765166]
[1772803967838,0.0061303,2049.6,2048.7,6.765166]
[1772803968138,5.62009219,2050.1,2048.7,6.765166]
[1772803968139,6.40407447,2050.2,2048.7,6.765166]
[1772803968334,6.16017447,2050.5,2048.8,0.24405]
[1772803968534,6.16017447,2050.5,2048.9,6.765166]
[1772803968731,6.16017447,2050.3,2049.1,6.765166]
[1772803968942,0.24389,2050.2,2049.2,6.765166]
[1772803969134,6.16017447,2051.0,2049.2,6.76944615]
[1772803969332,12.39327,2051.4,2049.2,6.76944615]
[1772803969333,6.40400447,2050.7,2049.4,6.765166]
[1772803969535,6.16017447,2050.6,2049.4,6.765166]
[1772803969737,0.24383,2050.7,2049.4,6.765166]
[1772803969933,6.16017447,2051.2,2049.6,6.765166]
[1772803970139,12.40110447,2051.1,2049.8,6.765166]
[1772803970344,0.00435161,2051.2,2049.8,6.765166]
[1772803970543,0.00435161,2051.2,2050.0,6.765166]
[1772803970945,1.26740081,2052.3,2050.3,6.765166]
[1772803970946,6.16017447,2052.1,2050.3,6.765166]
[1772803971248,6.16017447,2052.0,2050.5,6.765166]
[1772803971437,6.40385447,2051.9,2050.5,6.765166]
[1772803971638,6.16017447,2051.9,2050.5,6.765166]
[1772803971839,0.00519236,2051.9,2050.7,6.765166]
[1772803972044,6.16536683,2051.9,2050.7,6.76875829]
[1772803972244,0.00519236,2051.9,2050.7,6.76875829]
[1772803972445,6.16536683,2051.9,2050.7,6.76875829]
[1772803972742,0.24371,2051.7,2050.7,6.76875829]
[1772803972947,0.00519236,2051.9,2050.7,6.76875829]
[1772803973147,0.00519236,2051.9,2050.9,6.765166]
[1772803973348,0.00519236,2051.9,2051.1,6.765166]
[1772803974443,5.98558046,2051.9,2051.1,6.765166]
[1772803974647,5.98558046,2051.9,2051.0,9.176]
[1772803974849,5.9803881,2051.5,2050.7,0.00359229]
[1772803975251,5.9803881,2051.8,2050.7,6.5979209]
[1772803975448,0.00519236,2051.9,2050.7,6.5979209]
[1772803975846,5.98558046,2051.9,2050.7,6.5979209]
[1772803976046,5.9803881,2051.7,2050.7,6.5979209]
[1772803976244,5.9803881,2051.5,2050.4,6.59432861]
[1772803976548,5.9803881,2051.1,2050.1,15.77032861]
[1772803976849,5.9803881,2051.1,2050.1,6.59432861]
[1772803977253,5.9803881,2051.1,2050.1,6.59882851]
[1772803977441,5.9803881,2050.9,2050.1,0.0044999]
[1772803977646,5.9803881,2050.7,2049.8,15.77032861]
[1772803977847,5.9803881,2050.5,2049.5,6.59432861]
[1772803978553,5.9803881,2051.1,2049.5,6.59432861]
[1772803978750,5.9803881,2051.1,2049.5,6.59912988]
[1772803979547,0.24385,2050.6,2049.5,6.59912988]
[1772803979852,5.9803881,2050.6,2049.5,6.59912988]
[1772803980247,5.9803881,2050.9,2049.5,6.59912988]
[1772803980447,5.9803881,2051.0,2049.5,6.59912988]
[1772803981046,6.2242181,2050.7,2049.5,6.59912988]
[1772803981248,6.2242381,2050.5,2049.5,6.59912988]
[1772803981649,12.17982474,2050.3,2049.5,0.00480127]
[1772803981851,12.18047474,2050.1,2049.2,6.26606659]
[1772803982048,6.18043474,2049.9,2048.9,6.26606659]
[1772803982249,0.24395,2049.7,2048.9,6.26606659]
[1772803982446,12.32851474,2050.0,2048.9,6.26606659]
[1772803982649,5.93651474,2050.0,2048.9,6.26606659]
[1772803982852,5.94023036,2050.0,2048.9,6.27222574]
[1772803983451,0.00371562,2050.0,2048.9,6.27222574]
[1772803983657,0.00371562,2050.0,2049.1,6.26606659]
[1772803983956,5.93651474,2050.9,2049.5,6.26606659]
[1772803984159,5.93651474,2050.9,2049.7,6.26606659]
[1772803984655,6.18026474,2051.4,2049.9,6.26606659]
[1772803984856,6.18546953,2051.4,2049.9,6.26606659]
[1772803985459,6.18032474,2050.8,2049.9,6.26606659]
[1772803985959,0.00520479,2051.4,2050.1,6.26606659]
[1772803986262,0.00520479,2051.4,2050.3,6.26606659]
[1772803986755,6.18020474,2051.9,2050.5,6.26606659]
[1772803986957,5.93651474,2052.1,2050.5,6.26606659]
[1772803987152,5.93651474,2051.9,2050.5,6.26606659]
[1772803987458,5.93651474,2051.7,2050.5,6.26606659]
[1772803987858,5.93651474,2051.5,2050.5,6.27059957]
[1772803988158,0.24372,2051.6,2050.5,6.27059957]
[1772803988159,6.18023474,2051.6,2050.5,6.27059957]
[1772803988360,6.18025474,2051.4,2050.5,0.00453298]
[1772803988661,5.93651474,2051.1,2050.5,0.00453298]
[1772803988859,0.00608261,2051.7,2050.8,6.26606659]
[1772803989263,5.94259735,2051.7,2050.8,6.26606659]
[1772803989461,0.24374,2051.4,2050.5,6.27059957]
[1772803989661,6.18025474,2051.4,2050.5,6.27059957]
[1772803989859,5.94259735,2051.7,2050.5,6.27059957]
[1772803990065,0.00608261,2051.7,2050.5,6.27059957]
[1772803990264,0.00608261,2051.7,2050.7,6.26606659]
[1772803990460,0.00608261,2051.7,2050.9,6.26606659]
[1772803991367,5.93651474,2052.3,2050.9,6.26606659]
[1772803992164,5.93651474,2052.1,2050.9,6.26606659]
[1772803992367,0.24367,2052.0,2050.9,6.26606659]
[1772803992762,0.00468713,2052.1,2050.9,6.26606659]
[1772803993470,6.18486187,2052.1,2050.9,6.26606659]
[1772803993662,0.00468713,2052.1,2050.9,6.26606659]
[1772803994768,5.94120187,2052.1,2050.9,6.26606659]
[1772803994972,0.24367,2052.0,2050.9,6.26606659]
[1772803995371,5.93651474,2051.9,2050.9,6.26606659]
[1772803995570,6.18023474,2051.6,2050.6,6.26606659]
[1772803995873,10.07186263,2052.1,2050.6,6.26606659]
[1772803995874,5.93651474,2051.9,2050.6,6.26606659]
[1772803996070,0.00468713,2052.1,2050.6,6.26606659]
[1772803996276,12.63272704,2052.0,2050.6,6.26606659]
[1772803996477,6.18021474,2051.8,2050.6,6.26606659]
[1772803996775,5.99888713,2052.1,2050.6,6.26606659]
[1772803996776,5.94120187,2052.1,2050.6,6.26606659]
[1772803996977,0.24367,2052.0,2050.6,6.26606659]
[1772803997173,6.18018474,2052.0,2050.6,6.26606659]
[1772803997372,5.93651474,2051.7,2050.6,6.26606659]
[1772803998277,12.64261623,2051.6,2050.6,6.26606659]
[1772803998472,12.39889623,2051.5,2050.6,6.26606659]
[1772803998676,6.18030474,2051.0,2050.5,0.00453298]
[1772803999174,6.18030474,2051.0,2050.3,6.26606659]
[1772803999776,6.18032474,2050.8,2049.7,6.26606659]
[1772804000169,4.0728655,2051.1,2049.7,6.5139003]
[1772804000375,6.46567484,2051.0,2049.7,6.5139003]
[1772804000575,5.93651474,2051.2,2049.7,6.5139003]
[1772804000774,6.46492648,2051.1,2049.7,6.5139003]
[1772804000981,5.93651474,2051.2,2049.7,6.5139003]
[1772804001180,12.40161492,2051.1,2049.7,6.5139003]
[1772804001383,5.93651474,2051.1,2049.7,6.5139003]
[1772804001584,6.46543194,2051.0,2049.7,6.5139003]
[1772804001781,5.93651474,2051.1,2049.7,6.5139003]
[1772804001983,6.46561904,2051.0,2049.7,6.5139003]
[1772804002183,6.18030474,2051.0,2049.7,6.2699603]
[1772804002573,6.18032474,2050.8,2049.7,6.2699603]
[1772804002778,6.46682313,2050.7,2049.7,6.2699603]
[1772804002981,0.24381,2050.8,2049.7,6.2699603]
[1772804003183,5.93651474,2051.1,2049.9,6.26606659]
[1772804003479,6.46660684,2051.0,2049.9,6.26606659]
[1772804003783,5.93651474,2050.8,2049.9,6.26606659]
[1772804004481,0.24379,2051.0,2049.9,6.26606659]
[1772804004681,6.46777398,2050.9,2049.9,6.26606659]
[1772804004884,6.18030474,2051.0,2049.9,6.26606659]
[1772804005081,12.40444916,2050.9,2049.9,6.26606659]
[1772804005286,12.64825929,2050.8,2049.9,6.26606659]
[1772804005481,6.18035474,2050.6,2049.7,0.00389371]
[1772804005683,6.18040474,2050.2,2049.7,0.00389371]
[1772804005886,0.24389,2050.2,2049.7,6.2699603]
[1772804006290,5.93651474,2050.4,2049.7,6.2699603]
[1772804006589,6.18038474,2050.3,2049.4,6.26606659]
[1772804006783,6.18041474,2050.1,2049.2,15.46206659]
[1772804006983,9.60215323,2050.9,2049.9,6.26606659]
[1772804007185,5.93651474,2051.3,2050.1,6.26606659]
[1772804007394,5.93651474,2051.1,2050.1,15.46306659]
[1772804007591,5.93651474,2051.1,2050.2,6.26606659]
[1772804007988,5.94212103,2051.1,2050.2,6.27136712]
[1772804008192,0.00560629,2051.1,2050.2,6.27136712]
[1772804008391,5.93651474,2052.3,2050.6,6.26606659]
[1772804008691,5.93651474,2052.1,2050.8,6.26606659]
[1772804009387,5.94122452,2052.1,2050.9,0.2438]
[1772804009590,0.00470978,2052.1,2051.0,6.26606659]
[1772804010285,0.00470978,2052.1,2050.9,2.52852808]
[1772804010286,5.93651474,2052.7,2051.2,6.26606659]
[1772804010587,5.93651474,2052.7,2051.4,6.26606659]
[1772804010786,5.93651474,2053.0,2051.4,6.26606659]
[1772804010991,5.93651474,2053.0,2051.6,6.26606659]
[1772804011491,5.93651474,2053.6,2052.2,6.29613016]
[1772804011685,5.93651474,2053.6,2052.4,6.29613016]
[1772804011893,5.93651474,2053.6,2052.5,9.195]
[1772804012087,5.93651474,2053.6,2052.6,6.29613016]
[1772804012291,6.21966743,2053.9,2052.6,6.29613016]
[1772804012489,6.22575374,2053.9,2052.6,6.29613016]
[1772804012693,6.22575374,2053.9,2052.6,6.30008713]
[1772804012990,0.00608631,2053.9,2052.8,6.29613016]
[1772804013187,0.74399644,2054.4,2052.8,6.29613016]
[1772804013188,0.74399644,2054.4,2053.2,6.29613016]
[1772804013394,6.96366387,2054.4,2053.4,6.29613016]
[1772804013589,0.74399644,2054.4,2053.4,6.29613016]
[1772804013989,6.96366387,2054.4,2053.4,6.29613016]
[1772804014191,6.9688052,2054.4,2053.4,6.29613016]
[1772804014392,12.45081743,2054.3,2053.4,6.29613016]
[1772804014694,6.21966743,2054.2,2053.3,9.191]
[1772804014896,6.21966743,2054.2,2053.3,15.48713016]
[1772804015299,6.21966743,2054.2,2053.4,6.29613016]
[1772804015694,0.74913777,2054.4,2053.4,6.29613016]
[1772804015894,6.9688052,2054.4,2053.3,9.191]
[1772804016496,6.9688052,2054.4,2053.3,15.48713016]
[1772804016801,6.9688052,2054.4,2053.4,6.29613016]
[1772804017489,0.74913777,2054.4,2053.4,6.29613016]
[1772804017893,6.21966743,2055.0,2053.4,6.29613016]
[1772804018089,6.21966743,2055.0,2053.6,6.29613016]
[1772804018292,6.21966743,2055.7,2053.6,6.29613016]
[1772804018599,0.24315,2056.5,2054.6,6.29613016]
[1772804018901,6.2231638,2056.5,2054.8,6.29613016]
[1772804019096,6.2231638,2056.5,2055.0,6.29613016]
[1772804019395,0.00349637,2056.5,2055.2,6.29613016]
[1772804019695,0.24317,2056.2,2055.3,15.45613016]
[1772804019898,6.2231638,2056.5,2055.4,6.29613016]
[1772804020403,0.00349637,2056.5,2055.6,6.29613016]
[1772804020795,0.00349637,2056.5,2055.4,5.62537481]
[1772804020796,6.21966743,2056.4,2055.4,5.62537481]
[1772804020990,6.21966743,2056.4,2055.3,9.159]
[1772804021302,0.00349637,2056.5,2055.4,6.29613016]
[1772804021491,0.00349637,2056.5,2055.5,6.29613016]
[1772804022096,0.00349637,2056.5,2055.7,6.29613016]
[1772804022298,6.21966743,2056.8,2055.7,6.29613016]
[1772804023403,0.00468015,2056.8,2055.7,6.29613016]
[1772804023698,6.22434758,2056.8,2055.7,6.29613016]
[1772804024097,0.00468015,2056.8,2055.7,6.29613016]
[1772804024507,6.21966743,2057.5,2055.9,6.29613016]
[1772804024796,6.21966743,2057.8,2056.2,6.29613016]
[1772804025194,6.21966743,2057.8,2056.4,6.29613016]
[1772804025393,6.21966743,2057.1,2056.4,0.00348284]
[1772804025597,6.21966743,2057.1,2055.1,3.16638168]
[1772804025598,6.21966743,2056.7,2055.8,15.41413016]
[1772804025800,6.21966743,2056.3,2055.2,6.29613016]
[1772804026006,0.24315,2056.4,2055.4,6.29613016]
[1772804026299,0.24315,2056.4,2055.6,6.29613016]
[1772804026504,6.21966743,2056.6,2055.4,9.111]
[1772804026705,6.22309737,2056.6,2055.5,9.11]
[1772804027301,6.21966743,2056.3,2055.5,9.11]
[1772804027501,6.21966743,2056.1,2055.4,0.00533052]
[1772804027805,6.21966743,2055.7,2054.6,6.29613016]
[1772804028006,12.36092,2056.0,2054.3,6.29613016]
[1772804028007,6.21966743,2055.3,2054.3,6.29613016]
[1772804028606,6.21966743,2055.1,2054.0,15.39613016]
[1772804028905,6.22509763,2055.1,2054.0,15.40072989]
[1772804029305,6.21966743,2054.5,2052.2,6.29613016]
[1772804029500,5.98691,2054.6,2052.9,6.29613016]
[1772804029501,6.21966743,2054.6,2052.9,6.29613016]
[1772804029698,12.20675743,2054.6,2053.2,6.29613016]
[1772804029896,6.21966743,2054.0,2053.0,9.086]
[1772804030104,6.21966743,2053.8,2052.6,15.37913016]
[1772804030299,6.21966743,2053.8,2052.6,6.29613016]
[1772804030500,6.23235,2053.9,2052.6,0.00453608]
[1772804030501,6.21966743,2053.2,2052.6,0.00453608]
[1772804030806,6.22529224,2053.2,2052.6,0.00453608]
[1772804031105,6.22529224,2053.2,2052.0,9.08]
[1772804031302,0.24354,2053.1,2052.0,9.08]
[1772804031501,6.21966743,2052.8,2051.6,9.075]
[1772804031703,6.21966743,2052.7,2051.5,9.074]
[1772804032009,6.21966743,2052.6,2051.5,15.37526055]
[1772804032307,6.21966743,2052.6,2051.5,0.00513039]
[1772804032502,6.21966743,2052.4,2051.5,0.00513039]
[1772804032808,0.24364,2052.3,2051.5,0.00513039]
[1772804033104,5.99301,2052.5,2051.5,0.00513039]
[1772804033105,6.21966743,2052.5,2051.5,0.00513039]
[1772804033304,6.21966743,2053.0,2051.5,6.30126055]
[1772804033801,6.378,2052.9,2051.5,6.30126055]
[1772804034006,6.21966743,2052.8,2051.5,6.30126055]
[1772804034206,6.21966743,2052.8,2051.5,0.00513039]
[1772804034500,6.21966743,2052.6,2051.5,6.01843735]
[1772804034694,6.43375354,2052.9,2051.5,6.01843735]
[1772804035302,6.43375354,2052.9,2051.7,6.01330696]
[1772804035504,6.43375354,2052.9,2051.8,9.055]
[1772804036004,0.00562481,2053.2,2051.5,0.00513039]
[1772804036005,6.43375354,2052.7,2051.5,0.00513039]
[1772804037106,6.43375354,2052.5,2051.5,0.00513039]
[1772804037794,6.43375354,2052.5,2051.5,6.01843735]
[1772804039608,6.43375354,2052.5,2051.5,0.00513039]
[1772804040501,6.43375354,2052.5,2051.5,6.01843735]
[1772804041401,6.43375354,2052.5,2051.5,0.00513039]
[1772804042501,6.27020883,2052.3,2050.9,5.99533516]
[1772804042703,6.27020883,2052.1,2050.9,5.99533516]
[1772804043502,6.27020883,2052.0,2050.6,5.99533516]
[1772804043806,6.27020883,2051.8,2050.9,0.00467846]
[1772804044200,6.27020883,2051.6,2050.2,8.996]
[1772804044403,6.27020883,2051.4,2050.2,8.996]
[1772804045304,6.27020883,2051.1,2050.2,0.00421575]
[1772804045506,6.27020883,2050.9,2050.2,0.00421575]
[1772804045705,6.27020883,2050.9,2049.7,5.99533516]
[1772804046109,0.00413764,2051.4,2049.9,5.99533516]
[1772804046309,6.27020883,2051.2,2050.1,5.99533516]
[1772804046608,0.00413764,2051.4,2050.3,5.99533516]
[1772804046804,0.00413764,2051.4,2050.5,5.99533516]
[1772804047108,6.27434647,2051.4,2050.5,5.99533516]
[1772804048505,6.27020883,2052.0,2050.6,6.23917516]
[1772804048699,6.27020883,2052.6,2050.9,5.99533516]
[1772804048904,6.27020883,2052.6,2051.1,5.99533516]
[1772804049402,6.27020883,2052.6,2051.0,8.956]
[1772804049403,0.00604145,2052.6,2051.5,5.99533516]
[1772804049600,0.00604145,2052.6,2051.7,5.99533516]
[1772804049802,0.00604145,2052.6,2051.9,5.99533516]
[1772804050610,6.27020883,2052.9,2051.9,5.99533516]
[1772804051504,6.2754061,2052.9,2051.9,5.99533516]
[1772804051705,6.2754061,2052.9,2051.8,8.95]
[1772804052004,6.2754061,2052.9,2051.9,5.99533516]
[1772804052204,6.27020883,2052.7,2051.7,0.00345816]
[1772804053005,6.27020883,2052.5,2051.7,0.00345816]
[1772804053403,6.27020883,2052.5,2051.2,5.99533516]
[1772804053906,6.27020883,2052.3,2051.0,8.922]
[1772804054501,6.27020883,2052.3,2051.0,14.92207322]
[1772804055211,6.27020883,2052.1,2051.0,0.00473806]
[1772804055505,6.385,2052.4,2051.0,0.00473806]
[1772804055506,6.27020883,2051.9,2051.0,0.00473806]
[1772804055708,6.27020883,2051.8,2051.0,0.00473806]
[1772804056112,6.27020883,2051.8,2051.0,6.00007322]
[1772804056306,6.27020883,2051.8,2051.0,0.00473806]
[1772804057405,12.65520883,2052.1,2051.0,6.00007322]
[1772804057610,6.27020883,2052.0,2051.0,6.00007322]
[1772804057910,6.2754061,2052.9,2052.0,5.99533516]
[1772804058108,0.00519727,2052.9,2052.2,5.99533516]
[1772804058803,14.29089355,2054.3,2052.5,6.23894516]
[1772804058804,6.27020883,2053.9,2052.5,6.23894516]
[1772804059006,6.27020883,2053.9,2052.7,5.99533516]
[1772804059809,6.27642092,2053.9,2052.9,5.99533516]
[1772804060008,6.27642092,2053.9,2052.7,0.00526254]
[1772804060315,6.27642092,2053.9,2052.7,6.0005977]
[1772804061210,0.00621209,2053.9,2052.7,6.2441877]
[1772804061405,0.00621209,2053.9,2053.0,5.99533516]
[1772804061607,6.27020883,2054.2,2053.0,5.99533516]
[1772804062006,6.27020883,2054.2,2052.7,6.0005977]
[1772804062007,6.27020883,2054.1,2052.7,6.0005977]
[1772804062407,0.24347,2053.7,2052.7,0.00526254]
[1772804062612,6.27020883,2053.6,2052.7,0.00526254]
[1772804063611,6.27020883,2053.5,2052.7,0.00526254]
[1772804063813,12.65420883,2053.5,2052.7,0.00526254]
[1772804064112,6.27020883,2053.4,2052.7,0.00526254]
[1772804065311,6.27020883,2053.2,2051.7,6.23903516]
[1772804066212,6.27020883,2053.2,2051.7,6.24315141]
[1772804066909,6.27020883,2053.2,2052.0,5.99533516]
[1772804068711,6.384,2053.6,2051.9,0.24368]
[1772804068712,6.27020883,2053.6,2052.2,5.99533516]
[1772804068911,6.27020883,2053.6,2052.4,5.99533516]
[1772804069113,6.27020883,2053.6,2052.3,8.808]
[1772804069314,6.27020883,2053.6,2052.3,14.80333516]
[1772804069608,6.27020883,2053.4,2052.4,5.99533516]
[1772804070114,6.27020883,2053.4,2052.3,8.808]
[1772804070115,0.0035185,2053.7,2052.6,5.99533516]
[1772804070309,6.27372733,2053.7,2052.8,5.99533516]
[1772804070508,6.27372733,2053.7,2052.7,0.24359]
[1772804070509,6.27372733,2053.7,2052.9,14.79133516]
[1772804070704,6.27372733,2053.7,2052.9,8.796]
[1772804070907,6.27372733,2053.7,2052.9,8.87061]
[1772804071115,6.27372733,2053.7,2052.9,8.823]
[1772804071610,6.27372733,2053.7,2052.9,0.027]
[1772804071811,6.27372733,2053.7,2052.6,5.99533516]
[1772804072011,6.27372733,2053.7,2052.6,6.02069516]
[1772804072412,6.27372733,2053.7,2052.6,6.02483516]
[1772804073011,6.27372733,2053.7,2052.6,6.02935516]
[1772804073318,6.27372733,2053.7,2052.5,8.787]
[1772804074809,0.24348,2053.6,2052.5,8.787]
[1772804075010,6.19658354,2053.5,2052.5,8.787]
[1772804076006,6.19658354,2053.5,2052.6,5.86352467]
[1772804076213,6.20010204,2053.7,2052.6,6.10712467]
[1772804076516,6.20010204,2053.7,2052.6,6.13252467]
[1772804076710,6.20010204,2053.7,2052.6,6.14019467]
[1772804077109,0.0035185,2053.7,2052.6,6.14019467]
[1772804077615,6.20010204,2053.7,2052.6,5.90155467]
[1772804077915,6.20010204,2053.7,2052.6,5.86352467]
[1772804078117,6.20010204,2053.7,2052.6,5.89426467]
[1772804078314,6.20010204,2053.7,2052.6,5.86352467]
[1772804078514,6.20010204,2053.7,2052.6,5.89615467]
[1772804078916,6.20010204,2053.7,2052.6,5.86352467]
[1772804079714,6.20010204,2053.7,2052.5,8.787]
[1772804080114,12.58210204,2053.7,2052.5,8.787]
[1772804080415,6.19658354,2053.6,2052.5,8.787]
[1772804081319,6.19658354,2053.6,2052.6,5.86352467]
[1772804081515,6.19658354,2053.6,2052.5,14.65052467]
[1772804081919,6.19658354,2054.0,2052.8,5.86352467]
[1772804083018,6.20107156,2054.0,2052.8,5.86352467]
[1772804084322,6.19658354,2053.9,2052.8,5.86352467]
[1772804084812,6.44003354,2053.9,2052.6,5.86352467]
[1772804085015,0.00448802,2054.0,2053.1,5.86352467]
[1772804085212,0.00448802,2054.0,2053.2,5.86352467]
[1772804085213,6.20107156,2054.0,2053.2,5.86352467]
[1772804085410,6.20107156,2054.0,2053.2,0.00340985]
[1772804085811,0.00448802,2054.0,2053.2,5.86693452]
[1772804086014,1.14228291,2054.9,2053.4,5.86352467]
[1772804086015,6.19658354,2054.6,2053.4,5.86352467]
[1772804086219,6.19658354,2054.6,2053.2,0.00340985]
[1772804086519,6.19658354,2054.6,2053.2,5.86693452]
[1772804086520,6.19658354,2054.4,2053.2,5.86693452]
[1772804086918,6.20112272,2054.4,2053.2,5.86693452]
[1772804087118,6.19658354,2054.7,2053.9,5.86352467]
[1772804087321,6.19658354,2055.2,2053.9,5.86352467]
[1772804087718,6.19658354,2055.1,2053.9,5.86352467]
[1772804088120,6.20013143,2055.1,2053.9,5.86352467]
[1772804088319,6.20013143,2055.1,2054.1,5.86352467]
[1772804088514,0.00354789,2055.1,2054.1,5.86352467]
[1772804088717,6.19658354,2055.4,2054.1,5.86352467]
[1772804089523,6.19658354,2055.4,2054.1,6.11001467]
[1772804089826,6.20064751,2055.4,2054.1,5.86352467]
[1772804090415,6.20064751,2055.4,2054.1,6.10902467]
[1772804090615,6.20064751,2055.4,2053.8,8.663]
[1772804090616,6.19658354,2055.2,2053.8,5.86352467]
[1772804091328,6.19658354,2054.8,2053.7,8.636]
[1772804091721,6.19658354,2054.8,2053.8,5.86352467]
[1772804092423,0.00406397,2055.4,2054.0,5.86352467]
[1772804092723,0.00406397,2055.4,2054.2,5.86352467]
[1772804092928,0.00406397,2055.4,2054.4,5.86352467]
[1772804093126,0.00406397,2055.4,2054.4,6.12039467]
[1772804093326,6.19658354,2056.3,2054.8,6.10686467]
[1772804093530,6.19658354,2056.3,2055.0,5.86352467]
[1772804093823,6.19658354,2056.3,2054.9,8.616]
[1772804094123,6.19658354,2056.3,2055.0,5.86352467]
[1772804094329,6.20235954,2056.3,2055.0,5.86913214]
[1772804094728,6.20235954,2056.3,2055.0,6.11327214]
[1772804094929,6.20235954,2056.3,2055.0,5.86913214]
[1772804096126,6.20235954,2056.3,2055.0,6.11262214]
[1772804096431,6.20235954,2056.3,2055.0,5.86913214]
[1772804096727,6.20235954,2056.3,2055.0,6.11493214]
[1772804096924,6.20235954,2056.3,2055.0,5.86913214]
[1772804097827,5.45241088,2056.1,2055.0,5.86913214]
[1772804098229,0.005776,2056.3,2055.0,5.86913214]
[1772804098427,0.005776,2056.3,2055.2,5.5379688]
[1772804098626,0.005776,2056.3,2055.2,5.7840988]
[1772804099029,5.45818688,2056.3,2055.2,5.5379688]
[1772804099226,5.45818688,2056.3,2055.2,5.7889688]
[1772804099422,5.45818688,2056.3,2055.2,5.7920788]
[1772804099623,5.45818688,2056.3,2055.2,5.5379688]
[1772804099826,5.45818688,2056.3,2055.2,5.7845388]
[1772804100027,5.45241088,2056.8,2055.4,5.5379688]
[1772804100224,5.98139,2056.5,2055.0,5.54357627]
[1772804100527,16.92825315,2056.7,2055.1,5.7864588]
[1772804100726,12.03670569,2057.4,2055.1,5.7864588]
[1772804100727,5.45241088,2057.7,2056.1,5.5379688]
[1772804100932,5.45843737,2057.7,2056.3,5.7843888]
[1772804101132,5.45843737,2057.7,2056.3,5.5379688]
[1772804101332,6.21762,2058.8,2056.5,5.5379688]
[1772804101333,5.45241088,2058.2,2056.5,5.5379688]
[1772804101724,5.90890141,2058.7,2056.7,6.13543279]
[1772804101926,5.90890141,2058.7,2057.1,6.13298279]
[1772804102132,5.90890141,2058.7,2057.3,5.87506279]
[1772804102429,0.96208684,2059.6,2058.1,5.87506279]
[1772804102628,0.96208684,2059.6,2058.3,5.87506279]
[1772804103032,0.96208684,2059.6,2058.5,5.87506279]
[1772804103228,5.90890141,2060.1,2058.5,5.87506279]
[1772804103529,5.90890141,2060.1,2058.9,5.87506279]
[1772804103530,0.00461523,2060.1,2058.9,5.87506279]
[1772804103728,5.91351664,2060.1,2059.1,5.87506279]
[1772804103930,5.91351664,2060.1,2058.9,0.00468806]
[1772804103931,11.88043141,2059.9,2058.9,0.00468806]
[1772804104227,5.90890141,2059.4,2058.9,0.00468806]
[1772804104428,5.90890141,2060.0,2058.9,5.87975085]
[1772804104628,5.90890141,2060.0,2059.1,5.87506279]
[1772804105135,0.00461523,2060.1,2059.1,5.87506279]
[1772804105331,5.90890141,2060.0,2059.1,5.87506279]
[1772804105633,0.00461523,2060.1,2059.1,5.87506279]
[1772804105823,5.90890141,2061.7,2059.4,5.87506279]
[1772804106029,9.97697525,2062.3,2059.4,5.87506279]
[1772804106030,0.24241,2062.7,2060.4,5.87506279]
[1772804106228,5.90890141,2062.9,2060.8,5.87506279]
[1772804106437,5.90890141,2062.6,2060.8,5.87506279]
[1772804106624,5.96393,2062.5,2061.0,5.87506279]
[1772804106828,5.90890141,2062.4,2061.2,5.87506279]
[1772804107030,0.00603155,2062.5,2061.2,5.87506279]
[1772804107235,11.87399141,2062.1,2061.2,5.87506279]
[1772804107534,5.90890141,2061.8,2061.0,0.004938]
[1772804107930,5.90890141,2062.4,2061.0,5.88000079]
[1772804108132,5.91493296,2062.5,2061.0,0.004938]
[1772804108332,5.91493296,2062.5,2058.4,5.87506279]
[1772804108333,5.90890141,2060.5,2058.4,5.87506279]
[1772804108530,5.90890141,2060.0,2058.4,5.87506279]
[1772804108730,5.90890141,2060.0,2058.6,5.87506279]
[1772804109232,5.91305151,2060.0,2058.6,5.87890718]
[1772804109733,5.919078,2060.0,2058.6,5.87890718]
[1772804109928,5.91305151,2060.0,2058.6,5.87890718]
[1772804110134,5.90890141,2059.8,2058.6,5.87890718]
[1772804112437,5.90890141,2060.9,2059.0,5.87506279]
[1772804112633,5.90890141,2060.9,2059.2,5.87506279]
[1772804113032,5.90890141,2060.7,2059.4,5.87506279]
[1772804113632,5.90890141,2060.7,2058.0,6.21977]
[1772804113633,5.90890141,2060.1,2058.8,5.87506279]
[1772804113937,5.90890141,2059.9,2058.8,5.87506279]
[1772804114437,5.90890141,2059.7,2058.8,5.87506279]
[1772804114636,5.90890141,2059.7,2058.4,5.87506279]
[1772804114935,5.90890141,2059.2,2058.2,8.583]
[1772804115138,5.90890141,2059.0,2057.8,14.45706279]